lending/lending_fUSD_20251018
["ID","MTS","AMOUNT","RATE_DAILY","PERIOD"]
[391772448,1760794249714,-512.34806894,0.00030136,2]
[391772449,1760794249723,-500.0,0.00030136,2]
[391772450,1760794249733,-506.422017,0.00030136,2]
[391772451,1760794249743,-500.0,0.00030136,2]
[391772452,1760794249752,-553.43093134,0.00030136,2]
[391772453,1760794249761,-508.09481989,0.00030136,2]
[391772454,1760794249770,-500.0,0.00030136,2]
[391772455,1760794249779,-500.0,0.00030136,2]
[391772456,1760794249789,-500.0,0.00030136,2]
[391772457,1760794249798,-940.33,0.00030136,2]
[391772458,1760794249808,-500.0,0.00030136,2]
[391772459,1760794249817,-222.064215,0.00030136,30]
[391772460,1760794249826,-500.0,0.00030136,2]
[391772461,1760794249835,-500.40967351,0.00030136,2]
[391772462,1760794249844,-500.0,0.00030136,2]
[391772463,1760794249859,-500.0,0.00030136,2]
[391772464,1760794249868,-500.0,0.00030136,2]
[391772465,1760794249877,-500.0,0.00030136,2]
[391772466,1760794249886,-500.0,0.00030136,2]
[391772467,1760794249896,-1422.58,0.00030136,2]
[391772468,1760794249905,-500.0,0.00030136,2]
[391772469,1760794249919,-500.0,0.00030136,2]
[391772470,1760794249930,-500.0,0.00030136,2]
[391772471,1760794249939,-553.9702335,0.00030136,2]
[391772472,1760794249949,-500.0,0.00030136,2]
[391772473,1760794249959,-616.23062406,0.00030136,2]
[391772474,1760794249969,-542.90722068,0.00030136,2]
[391772475,1760794249978,-500.0,0.00030136,2]
[391772476,1760794249987,-823.73,0.00030136,2]
[391772477,1760794249996,-500.0,0.00030136,2]
[391772478,1760794250006,-500.0,0.00030136,2]
[391772479,1760794250015,-500.0,0.00030136,2]
[391772480,1760794250024,-500.0,0.00030136,2]
[391772481,1760794250034,-500.0,0.00030136,2]
[391772482,1760794250043,-500.0,0.00030136,2]
[391772483,1760794250052,-649.62144576,0.00030136,2]
[391772484,1760794250063,-500.0,0.00030136,2]
[391772485,1760794250072,-174.91524191,0.00030136,2]
[391772486,1760794250081,-500.0,0.00030136,2]
[391772487,1760794250090,-500.0,0.00030136,2]
[391772488,1760794250099,-1936.76,0.00030136,2]
[391772489,1760794250109,-500.0,0.00030136,2]
[391772490,1760794250120,-500.0,0.00030136,2]
[391772491,1760794250130,-574.69509213,0.00030136,2]
[391772492,1760794250140,-500.0,0.00030136,2]
[391772493,1760794250149,-500.0,0.00030136,2]
[391772494,1760794250161,-500.0,0.00030136,2]
[391772495,1760794250170,-500.0,0.00030136,2]
[391772496,1760794250179,-500.0,0.00030136,2]
[391772497,1760794250189,-500.0,0.00030136,2]
[391772498,1760794250198,-500.0,0.00030136,2]
[391772499,1760794250208,-500.0,0.00030136,2]
[391772500,1760794250218,-500.0,0.00030136,2]
[391772501,1760794250227,-513.73829326,0.00030136,2]
[391772502,1760794250236,-500.0,0.00030136,2]
[391772503,1760794250246,-500.0,0.00030136,2]
[391772504,1760794250255,-500.0,0.00030136,2]
[391772505,1760794250264,-500.0,0.00030136,2]
[391772506,1760794250273,-500.0,0.00030136,2]
[391772507,1760794250283,-500.0,0.00030136,2]
[391772508,1760794250300,-500.0,0.00030136,2]
[391772509,1760794250313,-616.43,0.00030136,2]
[391772510,1760794250322,-500.0,0.00030136,2]
[391772511,1760794250332,-502.6167541,0.00030136,2]
[391772512,1760794250342,-600.0,0.00030136,2]
[391772513,1760794250353,-500.0,0.00030136,2]
[391772514,1760794250362,-500.0,0.00030136,2]
[391772515,1760794250372,-500.0,0.00030136,2]
[391772516,1760794250381,-500.0,0.00030136,2]
[391772517,1760794250390,-501.67421892,0.00030136,2]
[391772518,1760794250400,-501.24147855,0.00030136,2]
[391772519,1760794250410,-506.68458238,0.00030136,2]
[391772520,1760794250419,-502.37468338,0.00030136,2]
[391772521,1760794250429,-500.0,0.00030136,2]
[391772522,1760794250439,-538.87678158,0.00030136,2]
[391772523,1760794250448,-501.27708263,0.00030136,2]
[391772524,1760794250457,-500.0,0.00030136,2]
[391772525,1760794250467,-500.0,0.00030136,2]
[391772526,1760794250476,-500.0,0.00030136,2]
[391772527,1760794250486,-500.0,0.00030136,2]
[391772528,1760794250495,-283.64396917,0.00030136,2]
[391772529,1760794250505,-556.851169,0.00030136,2]
[391772530,1760794250515,-500.34619284,0.00030136,2]
[391772531,1760794250524,-502.3722768,0.00030136,2]
[391772532,1760794250534,-500.0,0.00030136,2]
[391772533,1760794250543,-500.0,0.00030136,2]
[391772534,1760794250553,-500.0,0.00030136,2]
[391772535,1760794250563,-788.84,0.00030136,2]
[391772536,1760794250572,-533.24164815,0.00030136,2]
[391772537,1760794250582,-501.14402487,0.00030136,2]
[391772538,1760794250593,-500.0,0.00030136,2]
[391772539,1760794250602,-500.71887373,0.00030136,2]
[391772540,1760794250613,-700.21,0.00030136,2]
[391772541,1760794250623,-500.0,0.00030136,2]
[391772542,1760794250632,-500.97908678,0.00030136,2]
[391772543,1760794250642,-1665.46,0.00030136,2]
[391772544,1760794250652,-500.0,0.00030136,2]
[391772545,1760794250662,-500.0,0.00030136,2]
[391772546,1760794250672,-549.16352003,0.00030136,2]
[391772547,1760794250682,-500.36842122,0.00030136,2]
[391772548,1760794250692,-494.83957299,0.00030136,2]
[391772549,1760794250702,-905.02,0.00030136,2]
[391772550,1760794250711,-500.93327638,0.00030136,2]
[391772551,1760794250721,-500.0,0.00030136,2]
[391772552,1760794250732,-501.98253397,0.00030136,2]
[391772553,1760794250741,-500.0,0.00030136,2]
[391772554,1760794250751,-500.0,0.00030136,2]
[391772555,1760794250760,-500.0,0.00030136,2]
[391772556,1760794250770,-500.0,0.00030136,2]
[391772557,1760794250780,-500.0,0.00030136,2]
[391772558,1760794250789,-500.0,0.00030136,2]
[391772559,1760794250798,-500.0,0.00030136,2]
[391772560,1760794250807,-500.0,0.00030136,2]
[391772561,1760794250816,-500.0,0.00030136,2]
[391772562,1760794250826,-269.47459,0.00030136,2]
[391772563,1760794250835,-500.0,0.00030136,2]
[391772564,1760794250848,-500.0,0.00030136,2]
[391772565,1760794250862,-500.0,0.00030136,2]
[391772566,1760794250871,-555.78361794,0.00030136,2]
[391772567,1760794250881,-500.0,0.00030136,2]
[391772568,1760794250891,-500.0,0.00030136,2]
[391772569,1760794250902,-500.0,0.00030136,2]
[391772570,1760794250911,-500.0,0.00030136,2]
[391772571,1760794250921,-500.0,0.00030136,2]
[391772572,1760794250932,-504.14678259,0.00030136,2]
[391772573,1760794250942,-500.0,0.00030136,2]
[391772574,1760794250951,-500.0,0.00030136,2]
[391772575,1760794250961,-525.22108047,0.00030136,2]
[391772576,1760794250971,-500.0,0.00030136,2]
[391772577,1760794250981,-505.48621268,0.00030136,2]
[391772578,1760794250991,-500.0,0.00030136,2]
[391772579,1760794251001,-1053.95967686,0.00030136,2]
[391772580,1760794251010,-639.22007747,0.00030136,2]
[391772581,1760794251020,-500.0,0.00030136,2]
[391772582,1760794251029,-500.0,0.00030136,2]
[391772583,1760794251039,-500.0,0.00030136,2]
[391772584,1760794251051,-500.0,0.00030136,2]
[391772585,1760794251060,-500.0,0.00030136,2]
[391772586,1760794251070,-502.01875502,0.00030136,2]
[391772587,1760794251079,-500.0,0.00030136,2]
[391772588,1760794251089,-500.65797191,0.00030136,2]
[391772589,1760794251099,-500.0,0.00030136,2]
[391772590,1760794251108,-502.74265268,0.00030136,2]
[391772591,1760794251118,-500.0,0.00030136,2]
[391772592,1760794251129,-552.48,0.00030136,2]
[391772593,1760794251140,-500.0,0.00030136,2]
[391772594,1760794251149,-500.0,0.00030136,2]
[391772595,1760794251158,-500.0,0.00030136,2]
[391772596,1760794251167,-506.63123004,0.00030136,2]
[391772597,1760794251177,-500.0,0.00030136,2]
[391772598,1760794251187,-500.0,0.00030136,2]
[391772599,1760794251197,-500.0,0.00030136,2]
[391772600,1760794251207,-503.02807849,0.00030136,2]
[391772601,1760794251217,-500.0,0.00030136,2]
[391772602,1760794251227,-500.0,0.00030136,2]
[391772603,1760794251240,-500.69541661,0.00030136,2]
[391772604,1760794251250,-500.0,0.00030136,2]
[391772605,1760794251260,-500.0,0.00030136,2]
[391772606,1760794251270,-500.0,0.00030136,2]
[391772607,1760794251280,-516.13839879,0.00030136,2]
[391772608,1760794251290,-533.19751956,0.00030136,2]
[391772609,1760794251299,-500.0,0.00030136,2]
[391772610,1760794251309,-508.89966918,0.00030136,2]
[391772611,1760794251319,-500.0,0.00030136,2]
[391772612,1760794251329,-500.0,0.00030136,2]
[391772613,1760794251338,-500.0,0.00030136,2]
[391772614,1760794251348,-500.0,0.00030136,2]
[391772615,1760794251357,-501.13348868,0.00030136,2]
[391772616,1760794251367,-509.47787488,0.00030136,2]
[391772617,1760794251376,-500.0,0.00030136,2]
[391772618,1760794251386,-500.0,0.00030136,2]
[391772619,1760794251396,-437.09376233,0.00030136,2]
[391772620,1760794251409,-523.7563799,0.00030136,2]
[391772621,1760794251419,-500.0,0.00030136,2]
[391772622,1760794251429,-500.0,0.00030136,2]
[391772623,1760794251442,-261.69940233,0.00030136,2]
[391772624,1760794251451,-518.40676328,0.00030136,2]
[391772625,1760794251461,-500.0,0.00030136,2]
[391772626,1760794251471,-505.45251625,0.00030136,2]
[391772627,1760794251481,-502.21792998,0.00030136,2]
[391772628,1760794251494,-166.68,0.00030139,2]
[391772629,1760794251504,-1669.11658794,0.00030162,3]
[391772630,1760794251515,-4692.7494428,0.00030172,2]
[391772631,1760794251525,-168.0,0.00030213,2]
[391772632,1760794251535,-204.08902923,0.00030265,2]
[391772633,1760794251544,-1075.68,0.00030301,2]
[391772634,1760794251554,-413.73,0.00030301,2]
[391772635,1760794251563,-827.26,0.00030301,2]
[391772636,1760794251573,-351.45,0.00030301,2]
[391772637,1760794251583,-183.24076335,0.0003031,2]
[391772638,1760794251593,-1019.0,0.00030325,2]
[391772639,1760794251603,-166.66,0.00030342,2]
[391772640,1760794251613,-150.0,0.00030378,7]
[391772641,1760794251623,-15022.0492915,0.000304,3]
[391772642,1760794251633,-1153.0,0.0003041,5]
[391772643,1760794251643,-500.0,0.0003041,15]
[391772644,1760794251652,-2732.830066,0.0003041,2]
[391772645,1760794251662,-210.507306,0.0003041,2]
[391772646,1760794251671,-265.48541,0.0003041,2]
[391772647,1760794251681,-5689.719001,0.0003041,2]
[391772648,1760794251690,-3394.860484,0.0003041,2]
[391772649,1760794251700,-153.532707,0.0003041,2]
[391772650,1760794251710,-500.0,0.0003041,2]
[391772651,1760794251720,-500.0,0.0003041,2]
[391772652,1760794251730,-284.17454979,0.0003041,2]
[391772653,1760794251741,-500.0,0.0003041,2]
[391772654,1760794251752,-236.87138059,0.0003041,2]
[391772655,1760794251762,-190.99088657,0.0003041,2]
[391772656,1760794251772,-500.0,0.0003041,2]
[391772657,1760794251783,-500.0,0.0003041,2]
[391772658,1760794251792,-209.6244891,0.0003041,2]
[391772659,1760794251802,-500.0,0.0003041,2]
[391772660,1760794251812,-500.0,0.0003041,2]
[391772661,1760794251822,-437.17890527,0.0003041,2]
[391772662,1760794251836,-217.91085445,0.0003041,2]
[391772663,1760794251845,-249.06948704,0.0003041,2]
[391772664,1760794251860,-500.0,0.0003041,2]
[391772665,1760794251870,-500.0,0.0003041,2]
[391772666,1760794251880,-177.21913417,0.0003041,2]
[391772667,1760794251892,-242.79839114,0.0003041,2]
[391772668,1760794251903,-500.0,0.0003041,2]
[391772669,1760794251913,-500.0,0.0003041,2]
[391772670,1760794251923,-500.0,0.0003041,2]
[391772671,1760794251935,-456.82675662,0.0003041,2]
[391772672,1760794251945,-500.0,0.0003041,2]
[391772673,1760794251955,-500.0,0.0003041,2]
[391772674,1760794251965,-500.0,0.0003041,2]
[391772675,1760794251975,-500.0,0.0003041,2]
[391772676,1760794251985,-500.0,0.0003041,2]
[391772677,1760794251995,-383.00909383,0.0003041,2]
[391772678,1760794252006,-200.91203606,0.0003041,2]
[391772679,1760794252017,-500.0,0.0003041,2]
[391772680,1760794252032,-500.0,0.0003041,2]
[391772681,1760794252043,-500.0,0.0003041,2]
[391772682,1760794252053,-500.0,0.0003041,2]
[391772683,1760794252063,-500.0,0.0003041,2]
[391772684,1760794252072,-500.0,0.0003041,2]
[391772685,1760794252082,-478.94042251,0.0003041,2]
[391772686,1760794252092,-500.0,0.0003041,2]
[391772687,1760794252101,-500.0,0.0003041,2]
[391772688,1760794252111,-500.0,0.0003041,2]
[391772689,1760794252121,-627.54654531,0.0003041,2]
[391772690,1760794252130,-581.2338673,0.0003041,2]
[391772691,1760794252139,-281.7343724,0.0003041,2]
[391772692,1760794252149,-182.31963874,0.0003041,2]
[391772693,1760794252159,-500.0,0.0003041,2]
[391772694,1760794252168,-500.0,0.0003041,2]
[391772695,1760794252177,-500.0,0.0003041,2]
[391772696,1760794252187,-500.0,0.0003041,2]
[391772697,1760794252196,-809.82,0.0003041,2]
[391772698,1760794252207,-302.25958772,0.0003041,2]
[391772699,1760794252217,-203.51598115,0.0003041,2]
[391772700,1760794252231,-500.0,0.0003041,2]
[391772701,1760794252241,-500.0,0.0003041,2]
[391772702,1760794252251,-154.13858564,0.0003041,2]
[391772703,1760794252261,-500.0,0.0003041,2]
[391772704,1760794252271,-542.78815419,0.0003041,2]
[391772705,1760794252280,-500.0,0.0003041,2]
[391772706,1760794252290,-551.49283589,0.0003041,2]
[391772707,1760794252300,-185.14261006,0.0003041,2]
[391772708,1760794252310,-180.5595901,0.0003041,2]
[391772709,1760794252320,-500.0,0.0003041,2]
[391772710,1760794252330,-500.0,0.0003041,2]
[391772711,1760794252340,-500.0,0.0003041,2]
[391772712,1760794252349,-500.0,0.0003041,2]
[391772713,1760794252360,-500.0,0.0003041,2]
[391772714,1760794252370,-1024.41,0.0003041,2]
[391772715,1760794252379,-218.8051012,0.0003041,2]
[391772716,1760794252389,-240.8,0.0003041,2]
[391772717,1760794252401,-500.0,0.0003041,2]
[391772718,1760794252413,-500.0,0.0003041,2]
[391772719,1760794252423,-500.0,0.0003041,2]
[391772720,1760794252436,-500.0,0.0003041,2]
[391772721,1760794252446,-578.17839297,0.0003041,2]
[391772722,1760794252456,-283.77031838,0.0003041,2]
[391772723,1760794252466,-374.27794752,0.0003041,2]
[391772724,1760794252476,-500.0,0.0003041,2]
[391772725,1760794252487,-500.0,0.0003041,2]
[391772726,1760794252497,-523.18,0.0003041,2]
[391772727,1760794252508,-500.0,0.0003041,2]
[391772728,1760794252519,-576.96052944,0.0003041,2]
[391772729,1760794252529,-500.0,0.0003041,2]
[391772730,1760794252539,-518.88336478,0.0003041,2]
[391772731,1760794252549,-500.0,0.0003041,2]
[391772732,1760794252559,-500.0,0.0003041,2]
[391772733,1760794252569,-500.0,0.0003041,2]
[391772734,1760794252748,-608.13226577,0.0003041,2]
[391772735,1760794252760,-500.0,0.0003041,2]
[391772736,1760794252770,-500.0,0.0003041,2]
[391772737,1760794252779,-500.0,0.0003041,2]
[391772738,1760794252788,-500.0,0.0003041,2]
[391772739,1760794252797,-589.76359103,0.0003041,2]
[391772740,1760794252806,-500.0,0.0003041,2]
[391772741,1760794252815,-500.0,0.0003041,2]
[391772742,1760794252825,-450.5003376,0.0003041,2]
[391772743,1760794252834,-1026.91,0.0003041,2]
[391772744,1760794252843,-500.0,0.0003041,2]
[391772745,1760794252856,-232.69470886,0.0003041,2]
[391772746,1760794252865,-519.79426655,0.0003041,2]
[391772747,1760794252875,-500.0,0.0003041,2]
[391772748,1760794252884,-500.0,0.0003041,2]
[391772749,1760794252894,-500.0,0.0003041,2]
[391772750,1760794252903,-500.0,0.0003041,2]
[391772751,1760794252913,-184.68425501,0.0003041,2]
[391772752,1760794252923,-500.0,0.0003041,2]
[391772753,1760794252935,-195.3999021,0.0003041,2]
[391772754,1760794252946,-500.0,0.0003041,2]
[391772755,1760794252957,-509.48676921,0.0003041,2]
[391772756,1760794252968,-500.0,0.0003041,2]
[391772757,1760794252977,-500.0,0.0003041,2]
[391772758,1760794252987,-500.0,0.0003041,2]
[391772759,1760794252998,-500.0,0.0003041,2]
[391772760,1760794253007,-501.08722132,0.0003041,2]
[391772761,1760794253017,-500.0,0.0003041,2]
[391772762,1760794253026,-500.0,0.0003041,2]
[391772763,1760794253036,-500.0,0.0003041,2]
[391772764,1760794253046,-500.0,0.0003041,2]
[391772765,1760794253056,-339.24330288,0.0003041,2]
[391772766,1760794253065,-500.0,0.0003041,2]
[391772767,1760794253074,-607.19876573,0.0003041,2]
[391772768,1760794253083,-195.75001295,0.0003041,2]
[391772769,1760794253093,-500.0,0.0003041,2]
[391772770,1760794253102,-517.64064305,0.0003041,2]
[391772771,1760794253112,-404.08966497,0.0003041,2]
[391772772,1760794253121,-500.0,0.0003041,2]
[391772773,1760794253131,-155.53909351,0.0003041,2]
[391772774,1760794253140,-500.0,0.0003041,2]
[391772775,1760794253151,-322.92948585,0.0003041,2]
[391772776,1760794253161,-500.0,0.0003041,2]
[391772777,1760794253171,-500.0,0.0003041,2]
[391772778,1760794253180,-500.0,0.0003041,2]
[391772779,1760794253190,-491.66340552,0.0003041,2]
[391772780,1760794253199,-500.0,0.0003041,2]
[391772781,1760794253209,-260.30127805,0.0003041,2]
[391772782,1760794253219,-500.0,0.0003041,2]
[391772783,1760794253228,-500.0,0.0003041,2]
[391772784,1760794253238,-500.0,0.0003041,2]
[391772785,1760794253248,-500.0,0.0003041,2]
[391772786,1760794253257,-407.61579011,0.0003041,2]
[391772787,1760794253267,-339.35538792,0.0003041,2]
[391772788,1760794253276,-600.59267807,0.0003041,2]
[391772789,1760794253285,-200.32768879,0.0003041,2]
[391772790,1760794253295,-500.0,0.0003041,2]
[391772791,1760794253305,-500.0,0.0003041,2]
[391772792,1760794253315,-500.0,0.0003041,2]
[391772793,1760794253325,-500.0,0.0003041,2]
[391772794,1760794253334,-500.0,0.0003041,2]
[391772795,1760794253343,-500.0,0.0003041,2]
[391772796,1760794253353,-607.36620168,0.0003041,2]
[391772797,1760794253363,-274.52562832,0.0003041,2]
[391772798,1760794253372,-500.0,0.0003041,2]
[391772799,1760794253382,-563.29905119,0.0003041,2]
[391772800,1760794253392,-500.0,0.0003041,2]
[391772801,1760794253402,-500.0,0.0003041,2]
[391772802,1760794253412,-500.0,0.0003041,2]
[391772803,1760794253421,-500.0,0.0003041,2]
[391772804,1760794253430,-367.99194473,0.0003041,2]
[391772805,1760794253439,-460.61577492,0.0003041,2]
[391772806,1760794253449,-191.57448088,0.0003041,2]
[391772807,1760794253459,-500.0,0.0003041,2]
[391772808,1760794253468,-500.0,0.0003041,2]
[391772809,1760794253478,-500.0,0.0003041,2]
[391772810,1760794253487,-500.0,0.0003041,2]
[391772811,1760794253498,-567.44740514,0.0003041,2]
[391772812,1760794253508,-500.0,0.0003041,2]
[391772813,1760794253518,-500.0,0.0003041,2]
[391772814,1760794253527,-500.0,0.0003041,2]
[391772815,1760794253537,-286.06687742,0.0003041,2]
[391772816,1760794253547,-562.77425447,0.0003041,2]
[391772817,1760794253556,-634.95345975,0.0003041,2]
[391772818,1760794253566,-196.29172345,0.0003041,2]
[391772819,1760794253576,-649.55101014,0.0003041,2]
[391772820,1760794253585,-500.0,0.0003041,2]
[391772821,1760794253595,-2069.88,0.0003041,2]
[391772822,1760794253604,-189.40136413,0.0003041,2]
[391772823,1760794253614,-500.0,0.0003041,2]
[391772824,1760794253623,-500.0,0.0003041,2]
[391772825,1760794253633,-500.0,0.0003041,2]
[391772826,1760794253643,-500.0,0.0003041,2]
[391772827,1760794253652,-233.62116739,0.0003041,2]
[391772828,1760794253662,-500.0,0.0003041,2]
[391772829,1760794253672,-456.07043078,0.0003041,2]
[391772830,1760794253682,-2451.84,0.0003041,2]
[391772831,1760794253692,-500.0,0.0003041,2]
[391772832,1760794253701,-500.0,0.0003041,2]
[391772833,1760794253711,-311.78637273,0.0003041,2]
[391772834,1760794253722,-500.0,0.0003041,2]
[391772835,1760794253731,-503.15857055,0.0003041,2]
[391772836,1760794253741,-500.0,0.0003041,2]
[391772837,1760794253751,-500.0,0.0003041,2]
[391772838,1760794253761,-500.0,0.0003041,2]
[391772839,1760794253771,-500.0,0.0003041,2]
[391772840,1760794253780,-500.0,0.0003041,2]
[391772841,1760794253790,-500.0,0.0003041,2]
[391772842,1760794253799,-268.71217242,0.0003041,2]
[391772843,1760794253809,-500.0,0.0003041,2]
[391772844,1760794253819,-181.95343179,0.0003041,2]
[391772845,1760794253829,-198.68,0.0003041,2]
[391772846,1760794253839,-530.42349209,0.0003041,2]
[391772847,1760794253848,-500.0,0.0003041,2]
[391772848,1760794253862,-475.70520959,0.0003041,2]
[391772849,1760794253871,-518.76575876,0.0003041,2]
[391772850,1760794253880,-500.0,0.0003041,2]
[391772851,1760794253889,-275.93539931,0.0003041,2]
[391772852,1760794253899,-574.00663655,0.0003041,2]
[391772853,1760794253910,-500.0,0.0003041,2]
[391772854,1760794253919,-500.0,0.0003041,2]
[391772855,1760794253928,-500.0,0.0003041,2]
[391772856,1760794253940,-500.0,0.0003041,2]
[391772857,1760794253950,-382.86765467,0.0003041,2]
[391772858,1760794253959,-500.0,0.0003041,2]
[391772859,1760794253969,-151.0,0.0003041,30]
[391772860,1760794253978,-151.0,0.0003041,30]
[391772861,1760794253987,-500.0,0.0003041,2]
[391772862,1760794253997,-500.0,0.0003041,2]
[391772863,1760794254007,-500.0,0.0003041,2]
[391772864,1760794254017,-203.46000919,0.0003041,2]
[391772865,1760794254026,-500.0,0.0003041,2]
[391772866,1760794254036,-211.08417785,0.0003041,2]
[391772867,1760794254046,-500.0,0.0003041,2]
[391772868,1760794254056,-500.0,0.0003041,2]
[391772869,1760794254066,-171.86335668,0.0003041,2]
[391772870,1760794254076,-524.06640788,0.0003041,2]
[391772871,1760794254085,-190.46734756,0.0003041,2]
[391772872,1760794254095,-500.0,0.0003041,2]
[391772873,1760794254105,-500.0,0.0003041,2]
[391772874,1760794254114,-266.54109126,0.0003041,2]
[391772875,1760794254124,-500.0,0.0003041,2]
[391772876,1760794254134,-505.52,0.0003041,2]
[391772877,1760794254143,-768.86,0.0003041,2]
[391772878,1760794254153,-500.0,0.0003041,2]
[391772879,1760794254162,-500.0,0.0003041,2]
[391772880,1760794254171,-517.7245066,0.0003041,2]
[391772881,1760794254181,-500.0,0.0003041,2]
[391772882,1760794254190,-500.0,0.0003041,2]
[391772883,1760794254200,-500.0,0.0003041,2]
[391772884,1760794254210,-173.8196361,0.0003041,2]
[391772885,1760794254220,-500.0,0.0003041,2]
[391772886,1760794254229,-277.34958421,0.0003041,2]
[391772887,1760794254239,-500.0,0.0003041,2]
[391772888,1760794254248,-500.0,0.0003041,2]
[391772889,1760794254257,-500.0,0.0003041,2]
[391772890,1760794254267,-500.0,0.0003041,2]
[391772891,1760794254276,-500.0,0.0003041,2]
[391772892,1760794254285,-500.0,0.0003041,2]
[391772893,1760794254294,-500.0,0.0003041,2]
[391772894,1760794254304,-500.0,0.0003041,2]
[391772895,1760794254314,-500.0,0.0003041,2]
[391772896,1760794254323,-500.0,0.0003041,2]
[391772897,1760794254332,-500.0,0.0003041,2]
[391772898,1760794254342,-155.78948777,0.0003041,2]
[391772899,1760794254351,-500.0,0.0003041,2]
[391772900,1760794254360,-500.0,0.0003041,2]
[391772901,1760794254369,-620.58349367,0.0003041,2]
[391772902,1760794254378,-500.0,0.0003041,2]
[391772903,1760794254387,-517.91567226,0.0003041,2]
[391772904,1760794254397,-500.0,0.0003041,2]
[391772905,1760794254406,-500.0,0.0003041,2]
[391772906,1760794254415,-500.0,0.0003041,2]
[391772907,1760794254425,-500.0,0.0003041,2]
[391772908,1760794254434,-199.51960308,0.0003041,2]
[391772909,1760794254444,-500.0,0.0003041,2]
[391772910,1760794254454,-500.0,0.0003041,2]
[391772911,1760794254464,-500.0,0.0003041,2]
[391772912,1760794254474,-940.33,0.0003041,2]
[391772913,1760794254484,-500.0,0.0003041,2]
[391772914,1760794254494,-553.97578903,0.0003041,2]
[391772915,1760794254504,-397.2136378,0.0003041,2]
[391772916,1760794254514,-549.0589194,0.0003041,2]
[391772917,1760794254524,-367.15095776,0.0003041,2]
[391772918,1760794254534,-500.0,0.0003041,2]
[391772919,1760794254544,-500.0,0.0003041,2]
[391772920,1760794254553,-1422.58,0.0003041,2]
[391772921,1760794254563,-500.0,0.0003041,2]
[391772922,1760794254573,-580.90557191,0.0003041,2]
[391772923,1760794254583,-500.0,0.0003041,2]
[391772924,1760794254593,-500.0,0.0003041,2]
[391772925,1760794254602,-500.0,0.0003041,2]
[391772926,1760794254612,-823.73,0.0003041,2]
[391772927,1760794254622,-500.0,0.0003041,2]
[391772928,1760794254631,-500.0,0.0003041,2]
[391772929,1760794254640,-500.0,0.0003041,2]
[391772930,1760794254650,-500.0,0.0003041,2]
[391772931,1760794254660,-500.0,0.0003041,2]
[391772932,1760794254670,-500.0,0.0003041,2]
[391772933,1760794254680,-445.48611337,0.0003041,2]
[391772934,1760794254690,-500.0,0.0003041,2]
[391772935,1760794254699,-558.32234049,0.0003041,2]
[391772936,1760794254708,-1936.76,0.0003041,2]
[391772937,1760794254718,-500.0,0.0003041,2]
[391772938,1760794254727,-500.0,0.0003041,2]
[391772939,1760794254737,-500.0,0.0003041,2]
[391772940,1760794254746,-500.0,0.0003041,2]
[391772941,1760794254755,-500.0,0.0003041,2]
[391772942,1760794254764,-500.0,0.0003041,2]
[391772943,1760794254773,-500.0,0.0003041,2]
[391772944,1760794254782,-500.0,0.0003041,2]
[391772945,1760794254791,-500.0,0.0003041,2]
[391772946,1760794254800,-500.0,0.0003041,2]
[391772947,1760794254810,-504.36314483,0.0003041,2]